bitfinex-derivatives/quotes_BNBF0:USTF0_20250221
["timestamp","ask_amount","ask_price","bid_price","bid_amount"]
[1740122170068,1.89637148,654.94,653.79,2.14031028]
[1740122170368,1.89637148,654.94,653.8,2.14031028]
[1740122170566,1.89637148,654.94,653.81,2.14031028]
[1740122170767,1.89637148,654.94,653.82,2.14031028]
[1740122170963,1.89637148,654.94,653.83,2.14031028]
[1740122171167,1.89637148,654.94,653.84,2.14031028]
[1740122171369,1.89637148,654.94,653.85,2.14031028]
[1740122171568,1.89637148,654.94,653.86,2.14031028]
[1740122171769,1.89637148,654.94,653.87,2.14031028]
[1740122171967,1.89637148,654.94,653.88,5.1132752]
[1740122172270,1.89637148,654.94,653.89,2.14031028]
[1740122172569,1.89637148,654.94,653.9,2.14031028]
[1740122172770,1.89637148,654.94,653.91,2.14031028]
[1740122173071,1.89637148,654.94,653.92,5.1132752]
[1740122173269,1.89637148,654.94,653.93,2.14031028]
[1740122173465,1.89637148,654.94,653.94,2.14031028]
[1740122173665,1.89637148,654.94,653.92,2.97296492]
[1740122173666,1.89637148,654.94,653.95,2.14031028]
[1740122173873,1.89637148,654.94,653.96,5.1132752]
[1740122174072,1.89637148,654.94,653.97,2.14031028]
[1740122174372,1.89637148,654.94,653.98,2.14031028]
[1740122174573,1.89637148,654.94,653.99,2.14031028]
[1740122174769,1.89637148,654.94,654.0,2.14031028]
[1740122174970,1.89637148,654.94,654.01,2.14031028]
[1740122175167,1.89637148,654.94,654.02,2.14031028]
[1740122175375,1.89637148,654.94,653.96,2.97296492]
[1740122175674,1.89637148,654.94,653.74,1.14023109]
[1740122176975,1.89637148,654.94,653.73,1.14023109]
[1740122180277,1.89637148,654.94,653.44,1.14023109]
[1740122180476,1.89637148,654.94,653.45,2.14116835]
[1740122180671,1.89637148,654.94,653.46,2.14116835]
[1740122180876,1.89637148,654.94,653.47,2.14116835]
[1740122181071,1.89637148,654.94,653.48,2.14116835]
[1740122181271,1.89637148,654.94,653.49,2.14116835]
[1740122181476,1.89637148,654.94,653.5,2.14116835]
[1740122181677,1.89637148,654.94,653.51,2.14116835]
[1740122181871,1.89637148,654.94,653.52,2.14116835]
[1740122182071,1.89637148,654.94,653.53,2.14116835]
[1740122182273,1.89637148,654.94,653.48,2.97365694]
[1740122182274,1.89637148,654.94,653.54,2.14116835]
[1740122182474,1.89637148,654.94,653.55,2.14116835]
[1740122182674,1.89637148,654.94,653.56,2.14116835]
[1740122182875,1.89637148,654.94,653.57,2.14116835]
[1740122183071,1.89637148,654.94,653.58,2.14116835]
[1740122183278,1.89637148,654.94,653.59,2.14116835]
[1740122183578,1.89637148,654.94,653.6,2.14116835]
[1740122183779,1.89637148,654.94,653.61,2.14116835]
[1740122183979,1.89637148,654.94,653.62,5.11482529]
[1740122184172,1.89637148,654.94,653.63,2.14116835]
[1740122184373,1.89637148,654.94,653.64,2.14116835]
[1740122184580,1.89637148,654.94,653.65,2.14116835]
[1740122184778,1.89637148,654.94,653.66,2.14116835]
[1740122184974,1.89637148,654.94,653.67,2.14116835]
[1740122185178,1.89637148,654.94,653.68,2.14116835]
[1740122185378,1.89637148,654.94,653.69,2.14116835]
[1740122185579,1.89637148,654.94,653.7,2.14116835]
[1740122185776,1.89637148,654.94,653.71,2.14116835]
[1740122185981,1.89637148,654.94,653.71,2.97365694]
[1740122186283,1.89637148,654.94,653.72,2.13937501]
[1740122186481,1.89637148,654.94,653.71,2.97365694]
[1740122186682,1.89637148,654.94,653.72,2.13917447]
[1740122186879,1.89637148,654.94,653.71,2.97365694]
[1740122187080,1.89637148,654.94,653.72,2.13918993]
[1740122187278,1.89637148,654.94,653.71,2.97365694]
[1740122187479,1.89637148,654.94,653.72,5.112851]
[1740122187681,1.89637148,654.94,653.73,2.13902588]
[1740122187985,1.89637148,654.94,653.74,2.13902588]
[1740122188281,1.89637148,654.94,653.75,2.13902588]
[1740122188478,1.89637148,654.94,653.76,2.13902588]
[1740122188677,1.89637148,654.94,653.77,2.13902588]
[1740122188978,1.89637148,654.94,653.78,2.13902588]
[1740122189182,1.89637148,654.94,653.77,2.97365694]
[1740122189383,1.89637148,654.94,653.78,2.13885548]
[1740122189681,1.89637148,654.94,653.77,2.97365694]
[1740122189883,1.89637148,654.94,653.78,2.13867429]
[1740122190083,1.89637148,654.94,653.79,2.13864431]
[1740122190283,1.89637148,654.94,653.8,5.11230125]
[1740122190480,1.89637148,654.94,653.8,2.97365694]
[1740122191484,1.89637148,654.94,653.81,2.13841274]
[1740122191680,1.89637148,654.94,653.8,2.97365694]
[1740122191885,1.89637148,654.94,653.81,5.11213991]
[1740122192188,1.89637148,654.94,653.81,2.97365694]
[1740122192387,1.89637148,654.94,653.82,2.13837037]
[1740122192686,1.89637148,654.94,653.81,2.97365694]
[1740122192886,1.89637148,654.94,653.82,2.13831791]
[1740122193087,1.89637148,654.94,653.83,2.13831791]
[1740122193290,1.89637148,654.94,653.84,2.13831791]
[1740122193485,1.89637148,654.94,653.85,2.13831791]
[1740122193686,1.89637148,654.94,653.86,2.13831791]
[1740122193885,1.89637148,654.94,653.87,2.13831791]
[1740122194085,1.89637148,654.94,653.88,2.13831791]
[1740122194386,1.89637148,654.94,653.83,2.97365694]
[1740122194588,1.89637148,654.94,653.84,2.13833733]
[1740122194787,1.89637148,654.94,653.85,2.13833733]
[1740122194987,1.89637148,654.94,653.86,2.13833733]
[1740122195288,1.89637148,654.94,653.87,2.13833733]
[1740122195587,1.89637148,654.94,653.84,2.97365694]
[1740122195785,1.89637148,654.94,653.85,2.13829169]
[1740122195986,1.89637148,654.94,653.86,2.13829169]
[1740122196184,1.89637148,654.94,653.84,2.97365694]
[1740122196383,1.89637148,654.94,653.85,2.13835533]
[1740122196584,1.89637148,654.94,653.41,1.14023109]
[1740122196789,1.89637148,654.94,653.42,2.13815947]
[1740122196986,1.89637148,654.94,653.43,2.13815947]
[1740122197187,1.89637148,654.94,653.44,5.10776569]
[1740122197380,1.89637148,654.94,653.45,2.13815947]
[1740122197582,1.89637148,654.94,653.46,2.13815947]
[1740122197782,1.89637148,654.94,653.47,2.13815947]
[1740122197982,1.89637148,654.94,653.48,2.13815947]
[1740122198185,1.89637148,654.94,653.44,2.96960622]
[1740122198186,1.1454727,654.88,653.49,2.13815947]
[1740122198388,0.30540878,654.86,653.44,4.10983731]
[1740122198588,0.30540878,654.86,653.45,2.13827616]
[1740122198787,0.30540878,654.86,653.46,2.13827616]
[1740122198984,0.30540878,654.86,653.47,2.13827616]
[1740122199190,0.30540878,654.86,653.48,2.13827616]
[1740122199385,0.30540878,654.86,653.47,2.96960622]
[1740122199589,0.30540878,654.86,653.48,2.138001]
[1740122199791,0.30540878,654.86,653.47,2.96960622]
[1740122200091,0.30540878,654.86,653.48,2.13816159]
[1740122200286,0.30540878,654.86,653.47,2.96960622]
[1740122200491,0.30540878,654.86,653.48,5.10765789]
[1740122200691,0.30540878,654.86,653.49,2.13801291]
[1740122200889,0.30540878,654.86,653.48,2.96960622]
[1740122201490,0.30540878,654.86,653.49,2.13790267]
[1740122201692,0.30540878,654.86,653.5,2.13790267]
[1740122201887,0.30540878,654.86,653.51,2.13783488]
[1740122202187,0.30540878,654.86,653.5,2.96960622]
[1740122203791,0.30540878,654.86,653.51,2.96960622]
[1740122204991,0.30540878,654.86,653.31,1.14023109]
[1740122205192,0.30540878,654.86,653.32,2.13743865]
[1740122205392,0.30540878,654.86,653.33,2.13743865]
[1740122205589,0.30540878,654.86,653.34,5.10581784]
[1740122205793,0.30540878,654.86,653.35,2.13743865]
[1740122205994,0.30540878,654.86,653.36,2.13743865]
[1740122206193,0.30540878,654.86,653.37,2.13743865]
[1740122206390,0.30540878,654.86,653.38,2.13743865]
[1740122206594,0.30540878,654.86,653.39,2.13743865]
[1740122206893,0.30540878,654.86,653.4,2.13743865]
[1740122207087,0.30540878,654.86,653.39,2.96837919]
[1740122207088,0.30540878,654.86,653.41,2.13743865]
[1740122207291,0.30540878,654.86,653.42,2.13743865]
[1740122207490,0.30540878,654.86,653.43,2.13743865]
[1740122207688,0.30540878,654.86,653.44,2.13743865]
[1740122207891,0.30540878,654.86,653.45,2.13743865]
[1740122208094,0.30540878,654.86,653.46,2.13743865]
[1740122208286,0.30540878,654.86,653.47,5.10581784]
[1740122208487,0.30540878,654.86,653.48,2.13743865]
[1740122208691,0.30540878,654.86,653.49,2.13743865]
[1740122208893,0.30540878,654.86,653.5,2.13743865]
[1740122209089,0.30540878,654.86,653.51,2.13743865]
[1740122209291,0.30540878,654.86,653.52,2.13743865]
[1740122209489,0.30540878,654.86,653.53,2.13743865]
[1740122209687,0.30540878,654.86,653.54,5.10581784]
[1740122209993,0.30540878,654.86,653.55,2.13743865]
[1740122210193,0.30540878,654.86,653.56,2.13743865]
[1740122210395,0.30540878,654.86,653.57,2.13743865]
[1740122210589,0.30540878,654.86,653.54,2.96837919]
[1740122210792,0.30540878,654.86,653.55,2.13707387]
[1740122210989,0.30540878,654.86,653.56,2.13707387]
[1740122211193,0.30540878,654.86,653.57,2.13707387]
[1740122211393,0.30540878,654.86,653.56,2.96837919]
[1740122211595,0.30540878,654.86,653.57,2.13706199]
[1740122211795,0.30540878,654.86,653.56,2.96837919]
[1740122212489,1.1454727,654.85,653.56,2.96837919]
[1740122212690,0.30542278,654.83,653.56,2.96837919]
[1740122212990,0.30542278,654.83,653.46,1.14023109]
[1740122213190,0.30542278,654.83,653.47,2.13701388]
[1740122213393,0.30542278,654.83,653.48,2.13701388]
[1740122213593,0.30542278,654.83,653.49,2.13701388]
[1740122213793,0.30542278,654.83,653.5,2.13701388]
[1740122213991,0.30542278,654.83,653.51,2.13701388]
[1740122214194,0.30542278,654.83,653.52,2.13701388]
[1740122214494,0.30542278,654.83,653.53,2.13701388]
[1740122214695,0.30542278,654.83,653.48,2.967868]
[1740122215198,0.30542278,654.83,653.46,1.14023109]
[1740122218598,0.30542278,654.83,653.37,1.14023109]
[1740122218994,1.74042278,654.83,653.37,1.14023109]
[1740122222296,1.74042278,654.83,653.36,1.14023109]
[1740122224501,1.74042278,654.83,653.37,2.14006176]
[1740122224701,1.74042278,654.83,653.38,2.14006176]
[1740122224901,1.74042278,654.83,653.39,2.14006176]
[1740122225101,1.74042278,654.83,653.4,2.14006176]
[1740122225402,1.74042278,654.83,653.41,2.14006176]
[1740122225602,1.74042278,654.83,653.42,2.14006176]
[1740122225798,1.74042278,654.83,653.43,2.14006176]
[1740122226002,1.74042278,654.83,653.44,2.14006176]
[1740122226203,1.74042278,654.83,653.45,2.14006176]
[1740122226405,1.74042278,654.83,653.49,1.14023109]
[1740122226604,1.74042278,654.83,653.5,2.97225998]
[1740122228501,1.74042278,654.83,653.49,1.14023109]
[1740122229306,1.74042278,654.83,653.43,1.14023109]
[1740122229906,1.74042278,654.83,653.44,2.14146258]
[1740122230106,1.74042278,654.83,653.45,2.14146258]
[1740122230301,1.74042278,654.83,653.46,2.14146258]
[1740122230500,1.74042278,654.83,653.47,2.14146258]
[1740122230701,1.74042278,654.83,653.48,2.14146258]
[1740122230902,1.74042278,654.83,653.49,2.14146258]
[1740122231107,1.74042278,654.83,653.5,2.14146258]
[1740122231307,1.74042278,654.83,653.51,2.14146258]
[1740122231505,1.74042278,654.83,653.52,2.14146258]
[1740122231705,1.74042278,654.83,653.53,2.14146258]
[1740122231907,1.74042278,654.83,653.54,2.14146258]
[1740122232100,1.74042278,654.83,653.55,2.14146258]
[1740122232302,1.74042278,654.83,653.56,2.14146258]
[1740122232506,1.74042278,654.83,653.57,2.14146258]
[1740122232708,1.74042278,654.83,653.55,2.97418001]
[1740122232907,1.74042278,654.83,653.56,2.14277459]
[1740122233108,1.74042278,654.83,653.57,2.14277459]
[1740122233306,1.74042278,654.83,653.55,2.97418001]
[1740122233505,1.74042278,654.83,653.56,2.14282497]
[1740122233810,1.74042278,654.83,653.57,2.14282497]
[1740122234010,1.74042278,654.83,653.58,2.14282497]
[1740122234211,1.74042278,654.83,653.55,2.97418001]
[1740122234406,1.74042278,654.83,653.59,2.97418001]
[1740122235811,1.74042278,654.83,653.5,1.14023109]
[1740122236012,1.74042278,654.83,653.51,2.14457147]
[1740122236309,1.74042278,654.83,653.52,2.14457147]
[1740122236506,1.74042278,654.83,653.5,1.14023109]
[1740122236507,1.74042278,654.83,653.53,2.14457147]
[1740122236710,1.74042278,654.83,653.54,2.14457147]
[1740122236909,1.74042278,654.83,653.55,2.14457147]
[1740122237215,1.74042278,654.83,653.56,2.14457147]
[1740122237417,1.74042278,654.83,653.57,2.14457147]
[1740122237616,1.74042278,654.83,653.58,2.14457147]
[1740122237816,1.74042278,654.83,653.59,2.14457147]
[1740122238017,1.1454727,654.77,653.6,2.14457147]
[1740122238217,0.30546009,654.75,653.61,2.14457147]
[1740122238421,0.30546009,654.75,653.62,2.14457147]
[1740122238717,0.30546009,654.75,653.63,2.14457147]
[1740122238916,0.30546009,654.75,653.64,2.14457147]
[1740122239113,0.30546009,654.75,653.65,2.14457147]
[1740122239314,0.30546009,654.75,653.66,2.14457147]
[1740122239514,0.30546009,654.75,653.67,2.14457147]
[1740122239716,0.30546009,654.75,653.68,2.14457147]
[1740122239915,0.30546009,654.75,653.69,2.14457147]
[1740122240112,0.30546009,654.75,653.7,2.14457147]
[1740122240317,0.30546009,654.75,653.71,2.14457147]
[1740122240517,0.30546009,654.75,653.72,2.14457147]
[1740122240819,0.30546009,654.75,653.73,2.14457147]
[1740122241021,0.30546009,654.75,653.68,2.97844272]
[1740122241322,0.30546009,654.75,653.69,2.14482486]
[1740122241621,0.30546009,654.75,653.7,2.13785073]
[1740122241818,0.30546009,654.75,653.71,2.97844272]
[1740122244615,0.30546009,654.75,653.52,1.14023109]
[1740122246123,0.30546009,654.75,653.51,4.11892456]
[1740122246322,0.30546009,654.75,653.53,2.97869347]
[1740122247520,0.30546009,654.75,653.54,2.97869347]
[1740122248721,0.30546009,654.75,653.56,1.14023109]
[1740122251023,0.30546009,654.75,653.41,1.14023109]
[1740122253926,0.30546009,654.75,653.4,1.14023109]
[1740122256724,0.30546009,654.75,653.41,2.97780563]
[1740122257625,0.30546009,654.75,653.42,2.14370056]
[1740122257825,0.30546009,654.75,653.43,2.14370056]
[1740122258123,0.30546009,654.75,653.44,5.12150619]
[1740122258323,0.30546009,654.75,653.45,2.14370056]
[1740122258525,0.30546009,654.75,653.46,2.14370056]
[1740122258718,0.30546009,654.75,653.47,2.14370056]
[1740122258919,0.30546009,654.75,653.48,2.14370056]
[1740122259119,0.30546009,654.75,653.49,2.14370056]
[1740122259323,0.30546009,654.75,653.5,2.14370056]
[1740122259520,0.30546009,654.75,653.51,2.14370056]
[1740122259721,0.30546009,654.75,653.52,2.14370056]
[1740122259924,0.30546009,654.75,653.5,2.97780563]
[1740122259925,0.30546009,654.75,653.53,2.14370056]
[1740122260125,0.30546009,654.75,653.54,2.14370056]
[1740122260320,0.30546009,654.75,653.55,2.14370056]
[1740122260621,0.30546009,654.75,653.56,2.14370056]
[1740122260820,0.30546009,654.75,653.57,2.14370056]
[1740122261023,0.30546009,654.75,653.58,2.14370056]
[1740122261222,0.30546009,654.75,653.5,2.97780563]
[1740122261223,0.30546009,654.75,653.59,2.14370056]
[1740122261426,0.30546009,654.75,653.6,2.14370056]
[1740122261726,0.30546009,654.75,653.61,2.14370056]
[1740122261925,0.30546009,654.75,653.62,2.14370056]
[1740122262126,0.30546009,654.75,653.63,2.14370056]
[1740122262327,0.30546009,654.75,653.64,2.14370056]
[1740122262525,0.30546009,654.75,653.65,2.14370056]
[1740122262721,0.30546009,654.75,653.66,2.14370056]
[1740122262924,0.30546009,654.75,653.67,2.14370056]
[1740122263126,0.30546009,654.75,653.65,2.97780563]
[1740122263426,0.30546009,654.75,653.66,2.14411688]
[1740122263620,0.30546009,654.75,653.67,2.14411688]
[1740122263827,0.30546009,654.75,653.68,2.14416144]
[1740122264022,0.30546009,654.75,653.69,2.14416144]
[1740122264222,0.30546009,654.75,653.7,2.14416144]
[1740122264427,0.30546009,654.75,653.68,2.97780563]
[1740122264627,0.30546009,654.75,653.69,2.14420114]
[1740122264827,0.30546009,654.75,653.7,2.14420114]
[1740122265028,0.30546009,654.75,653.68,2.97780563]
[1740122265226,0.30546009,654.75,653.69,5.12198827]
[1740122265422,0.30546009,654.75,653.69,2.97780563]
[1740122265727,0.30546009,654.75,653.7,2.144176]
[1740122266027,0.30546009,654.75,653.69,2.97780563]
[1740122266229,0.30546009,654.75,653.7,2.14417598]
[1740122266431,0.30546009,654.75,653.69,2.97780563]
[1740122266629,0.30546009,654.75,653.7,2.14412839]
[1740122266928,0.30546009,654.75,653.69,2.97780563]
[1740122267130,0.30546009,654.75,653.71,2.97780563]
[1740122268631,0.30546009,654.75,653.54,1.14023109]
[1740122268832,0.30546009,654.75,653.55,2.14452056]
[1740122269132,0.30546009,654.75,653.56,2.14452056]
[1740122269333,0.30546009,654.75,653.57,2.14452056]
[1740122269529,0.30546009,654.75,653.58,2.14452056]
[1740122269727,0.30546009,654.75,653.59,2.14452056]
[1740122270032,0.30546009,654.75,653.6,2.14452056]
[1740122270225,0.30546009,654.75,653.61,2.14452056]
[1740122270427,0.30546009,654.75,653.62,2.14452056]
[1740122270631,0.30546009,654.75,653.63,2.14452056]
[1740122270826,0.30546009,654.75,653.64,2.14452056]
[1740122271027,0.30546009,654.75,653.65,2.14452056]
[1740122271233,0.30546009,654.75,653.66,5.12354668]
[1740122271430,0.30546009,654.75,653.67,2.14452056]
[1740122271633,0.30546009,654.75,653.68,2.14452056]
[1740122271833,0.30546009,654.75,653.69,2.14452056]
[1740122272035,0.30546009,654.75,653.7,2.14452056]
[1740122272236,0.30546009,654.75,653.71,2.14452056]
[1740122272437,0.30546009,654.75,653.72,2.14452056]
[1740122272631,0.30546009,654.75,653.73,5.12354668]
[1740122272830,0.30546009,654.75,653.74,2.14452056]
[1740122273038,0.30546009,654.75,653.75,2.14452056]
[1740122273238,0.30546009,654.75,653.76,2.14452056]
[1740122273436,0.30546009,654.75,653.73,2.97902612]
[1740122273833,0.30546009,654.75,653.6,1.14023109]
[1740122274030,0.30546009,654.75,653.61,2.1447138]
[1740122274234,0.30546009,654.75,653.62,2.1447138]
[1740122274432,0.30546009,654.75,653.63,2.1447138]
[1740122274631,0.30546009,654.75,653.62,2.97920813]
[1740122275441,0.30546009,654.75,653.6,1.14023109]
[1740122275641,0.30546009,654.75,653.51,1.14023109]
[1740122278141,0.30546009,654.75,653.35,1.14023109]
[1740122278333,0.30546009,654.75,653.36,2.14519719]
[1740122278535,0.30546009,654.75,653.37,2.14519719]
[1740122278738,0.30546009,654.75,653.38,2.14519719]
[1740122278940,0.30546009,654.75,653.36,2.97980046]
[1740122279139,0.30546009,654.75,653.37,2.14521004]
[1740122279339,0.30546009,654.75,653.38,2.14521004]
[1740122279542,0.30546009,654.75,653.39,2.14521004]
[1740122279842,0.30546009,654.75,653.36,2.97980046]
[1740122280042,0.30546009,654.75,653.37,5.12491122]
[1740122280342,0.30546009,654.75,653.37,2.97980046]
[1740122281642,0.30546009,654.75,653.38,2.97980046]
[1740122282642,0.30546009,654.75,653.35,1.14023109]
[1740122283042,0.30546009,654.75,653.36,2.97941849]
[1740122283447,0.30546009,654.75,653.38,1.14023109]
[1740122284546,0.30546009,654.75,653.39,2.14510757]
[1740122284746,0.30546009,654.75,653.4,2.14510757]
[1740122284942,0.30546009,654.75,653.41,2.14510757]
[1740122285141,0.30546009,654.75,653.42,2.14510757]
[1740122285445,0.30546009,654.75,653.43,2.14510757]
[1740122285747,0.30546009,654.75,653.44,2.14510757]
[1740122286046,0.30546009,654.75,653.45,2.14510757]
[1740122286241,0.30546009,654.75,653.46,2.14510757]
[1740122286548,0.30546009,654.75,653.47,2.14510757]
[1740122286847,0.30546009,654.75,653.48,2.14510757]
[1740122287041,0.30546009,654.75,653.49,2.14510757]
[1740122287244,0.30546009,654.75,653.5,2.14510757]
[1740122287441,0.30546009,654.75,653.51,2.14510757]
[1740122287644,0.30546009,654.75,653.52,2.14510757]
[1740122287947,0.30546009,654.75,653.53,2.14510757]
[1740122288147,0.30546009,654.75,653.54,2.14510757]
[1740122288348,0.30546009,654.75,653.55,2.14510757]
[1740122288646,0.30546009,654.75,653.56,2.14510757]
[1740122288945,0.30546009,654.75,653.57,2.14510757]
[1740122289251,0.30546009,654.75,653.56,2.97962749]
[1740122289549,0.30546009,654.75,653.57,2.1459992]
[1740122289749,0.30546009,654.75,653.56,2.97962749]
[1740122289951,0.30546009,654.75,653.57,2.14599948]
[1740122290152,0.30546009,654.75,653.58,2.14599948]
[1740122290351,0.30546009,654.75,653.59,2.14599948]
[1740122290555,0.30546009,654.75,653.6,2.14599948]
[1740122290748,0.30546009,654.75,653.61,5.12562697]
[1740122290947,0.30546009,654.75,653.62,2.14599948]
[1740122291152,0.30546009,654.75,653.63,2.14599948]
[1740122291353,0.30546009,654.75,653.64,2.14599948]
[1740122291555,0.30546009,654.75,653.65,2.14599948]
[1740122291755,0.30546009,654.75,653.66,2.14599948]
[1740122291950,0.30546009,654.75,653.67,2.14599948]
[1740122292157,0.30546009,654.75,653.67,2.97962749]
[1740122292851,0.30546009,654.75,653.68,2.1459001]
[1740122293053,0.30546009,654.75,653.67,2.97962749]
[1740122293252,0.30546009,654.75,653.68,2.145919]
[1740122293453,0.30546009,654.75,653.69,2.145919]
[1740122293656,0.30546009,654.75,653.7,2.145919]
[1740122293852,0.30546009,654.75,653.71,2.145919]
[1740122294050,0.30546009,654.75,653.72,2.145919]
[1740122294254,0.30546009,654.75,653.73,2.145919]
[1740122294450,0.30546009,654.75,653.74,2.145919]
[1740122294754,0.30546009,654.75,653.75,2.145919]
[1740122294957,0.30546009,654.75,653.76,2.145919]
[1740122295256,0.30546009,654.75,653.77,2.145919]
[1740122295456,0.30546009,654.75,653.78,5.12554649]
[1740122295651,0.30546009,654.75,653.78,2.97962749]
[1740122296257,0.30546009,654.75,653.79,2.14673945]
[1740122296460,0.30546009,654.75,653.8,2.14673945]
[1740122296659,0.30546009,654.75,653.51,1.14023109]
[1740122296858,0.30546009,654.75,653.52,2.14677752]
[1740122297059,1.2,654.74,653.53,2.14677752]
[1740122297255,0.30547409,654.72,653.55,1.14023109]
[1740122297464,0.30547409,654.72,653.56,2.14677752]
[1740122297660,0.30547409,654.72,653.57,2.14677752]
[1740122297955,0.30547409,654.72,653.58,2.14677752]
[1740122298162,0.30547409,654.72,653.59,2.14677752]
[1740122298359,0.30547409,654.72,653.6,2.14677752]
[1740122298564,0.30547409,654.72,653.61,2.14677752]
[1740122298758,0.30547409,654.72,653.62,2.14677752]
[1740122298960,0.30547409,654.72,653.63,2.14677752]
[1740122299165,0.30547409,654.72,653.64,2.14677752]
[1740122299360,0.30547409,654.72,653.65,2.14677752]
[1740122299559,0.30547409,654.72,653.61,2.98197276]
[1740122299765,0.30547409,654.72,653.55,1.14023109]
[1740122300657,0.30547409,654.72,646.8,9.11924155]
[1740122300658,0.30547409,654.72,653.57,1.14023109]
[1740122303165,0.30547409,654.72,653.45,1.14023109]
[1740122304860,0.30547409,654.72,653.46,2.98206529]
[1740122306268,0.30547409,654.72,653.44,1.14023109]
[1740122307969,0.30547409,654.72,653.42,1.14023109]
[1740122308872,0.30547409,654.72,653.43,5.12823768]
[1740122309168,0.30547409,654.72,653.43,2.98175235]
[1740122309569,0.30547409,654.72,653.44,2.14685994]
[1740122309764,0.30547409,654.72,653.45,2.14685994]
[1740122310064,0.30547409,654.72,653.43,2.98175235]
[1740122310065,0.30547409,654.72,653.46,2.14685994]
[1740122310270,0.30547409,654.72,653.43,2.98175235]
[1740122310472,0.30547409,654.72,653.47,2.98175235]
[1740122311368,0.30547409,654.72,653.48,2.14677519]
[1740122311568,0.30547409,654.72,653.49,2.14677519]
[1740122311770,0.30547409,654.72,653.47,2.98175235]
[1740122312070,0.30547409,654.72,653.5,2.98175235]
[1740122313574,0.30547409,654.72,653.51,2.98175235]
[1740122314268,0.30547409,654.72,653.52,2.14658721]
[1740122314471,0.30547409,654.72,653.53,2.14658721]
[1740122314667,0.30547409,654.72,653.51,2.98175235]
[1740122314668,0.30547409,654.72,653.54,2.14658721]
[1740122314872,0.30547409,654.72,653.51,2.98175235]
[1740122315074,0.30547409,654.72,653.55,2.98175235]
[1740122316466,0.30547409,654.72,653.39,1.14023109]
[1740122316670,0.30547409,654.72,653.4,2.1466243]
[1740122316867,0.30547409,654.72,653.41,2.1466243]
[1740122317067,0.30547409,654.72,653.42,2.1466243]
[1740122317270,0.30547409,654.72,653.43,2.1466243]
[1740122317565,0.30547409,654.72,653.44,2.1466243]
[1740122317764,0.30547409,654.72,653.45,2.1466243]
[1740122317969,0.30547409,654.72,653.46,2.1466243]
[1740122318168,0.30547409,654.72,653.47,2.1466243]
[1740122318374,0.30547409,654.72,653.48,2.1466243]
[1740122318673,0.30547409,654.72,653.49,2.1466243]
[1740122318865,0.30547409,654.72,653.5,2.1466243]
[1740122319067,0.30547409,654.72,653.51,2.1466243]
[1740122319267,0.30547409,654.72,653.48,2.98173518]
[1740122319268,0.30547409,654.72,653.52,2.1466243]
[1740122319567,0.30547409,654.72,653.53,2.1466243]
[1740122319869,0.30547409,654.72,653.54,2.1466243]
[1740122320069,0.30547409,654.72,653.55,2.1466243]
[1740122320266,0.30547409,654.72,653.56,2.1466243]
[1740122320572,0.30547409,654.72,653.57,2.1466243]
[1740122320775,0.30547409,654.72,653.58,2.1466243]
[1740122320973,0.30547409,654.72,653.59,2.1466243]
[1740122321174,0.30547409,654.72,653.6,2.1466243]
[1740122321373,0.30547409,654.72,653.61,2.1466243]
[1740122321568,0.30547409,654.72,653.62,2.1466243]
[1740122321769,0.30547409,654.72,653.63,2.1466243]
[1740122321970,0.30547409,654.72,653.61,2.98173518]
[1740122321971,0.30547409,654.72,653.64,2.1466243]
[1740122322169,0.30547409,654.72,653.65,2.1466243]
[1740122322373,0.30547409,654.72,653.66,2.1466243]
[1740122322573,0.30547409,654.72,653.67,2.1466243]
[1740122322773,0.30547409,654.72,653.68,2.1466243]
[1740122323073,0.30547409,654.72,653.69,2.1466243]
[1740122323271,0.30547409,654.72,653.7,2.1466243]
[1740122323471,0.30547409,654.72,653.71,2.1466243]
[1740122323671,0.30547409,654.72,653.72,2.1466243]
[1740122323872,0.30547409,654.72,653.73,2.1466243]
[1740122324075,0.30547409,654.72,653.68,2.98173518]
[1740122324277,0.30547409,654.72,653.69,2.14679106]
[1740122324472,0.30547409,654.72,653.7,2.14679106]
[1740122324674,0.30547409,654.72,653.71,5.12852624]
[1740122324875,0.30547409,654.72,653.72,2.14679106]
[1740122325173,0.30547409,654.72,653.73,2.14679106]
[1740122325372,0.30547409,654.72,653.74,2.14679106]
[1740122325672,0.30547409,654.72,653.75,2.14679106]
[1740122325872,0.30547409,654.72,653.76,2.14665483]
[1740122326075,0.30547409,654.72,653.77,5.12839001]
[1740122326278,0.30547409,654.72,653.78,2.14665483]
[1740122326472,0.30547409,654.72,653.79,2.14665483]
[1740122326675,0.30547409,654.72,653.77,2.98173518]
[1740122326876,0.30547409,654.72,653.78,2.14683348]
[1740122327077,0.30547409,654.72,653.79,2.14683348]
[1740122327376,0.30547409,654.72,653.77,2.98173518]
[1740122327377,0.30547409,654.72,653.8,2.14683348]
[1740122327575,0.30547409,654.72,653.78,2.98173518]
[1740122327771,0.30547409,654.72,653.79,2.1467237]
[1740122327973,0.30547409,654.72,653.8,2.1467237]
[1740122328174,0.30547409,654.72,653.78,2.98173518]
[1740122328379,0.30547409,654.72,653.79,5.12842367]
[1740122328574,0.30547409,654.72,653.8,2.14668849]
[1740122328774,0.30547409,654.72,653.79,2.98173518]
[1740122329174,0.30547409,654.72,653.8,2.14678226]
[1740122329378,0.30547409,654.72,653.79,2.98173518]
[1740122329579,0.30547409,654.72,653.8,2.146889]